Cogmind - Beta 11 X10 @@@ ROGUE MODE // 2022.02.24 @ 07:24:12 Player: maxwell Result: Self-destructed Performance ------------- Evolutions (4) 2000 Regions Visited (15) 3000 Robots Destroyed (165) 825 Value Destroyed (5805) 5805 Prototype IDs (30) 600 Alien Tech Used (0) 0 Bonus (2009) 2009 TOTAL SCORE: 14239 Bonus ------- High Alert Combat Kills 456 Follower Combat Kills 437 Met Data Miner 300 Destroyed Z-Imprinter 1000 Triggered Deep Caves Wall 500 Friendly Fire -684 Cogmind --------- Core Integrity 337/850 Matter 230/300 Energy 946/1100 System Corruption 8% Temperature Critical (543) Movement Core (1300) Ox25 Location -6/Deep Caves Parts ------- > --- POWER (2) -------- Assembled Flux Generator > --- PROPULSION (2) --- (None) > --- UTILITY (8) ------ Assembled Biocell Array Zionite Weapon Casing Hardened Light Armor Plating Assembled Alloy Armor GOLEM Unit > --- WEAPON (3) ------- Lightning Gun Heavy Laser Assembled Focal Cannon > --- INVENTORY (5) ---- Zionite Biocell (600) Makeshift Hacking Suite Hacking Drone Bay (1/1) Zionite Phaser-S Peak State ------------ > --- POWER ------------ Assembled Flux Generator > --- PROPULSION ------- Armored Huge Wheel > --- UTILITY ---------- Assembled Nanovents Assembled Nanovents Assembled Nanovents Assembled Biocell Array Assembled Suspension Frame Assembled Alloy Armor GOLEM Unit > --- WEAPON ----------- Lightning Gun High-powered Shock Rifle Improved EM Pulse Cannon > --- INVENTORY -------- Hardened Light Armor Plating Long-range Tractor Beam Plasma Rifle Thermic Laser Zionite Laser-S [Rating: 110] Favorites ----------- Power Heavy Deuterium Engine Engine Heavy Deuterium Engine Power Core Nuclear Core Reactor Zionite Light DM Reactor Propulsion Armored Huge Wheel Treads Light Treads Leg Assembled Alloy Leg Wheel Armored Huge Wheel Utility Humpback Device Experimental Sensor Array Storage Humpback Processor Advanced Targeting Computer Hackware Hacking Suite Protection Hardened Heavy Armor Plating Weapon Cooled Pulse Rifle Energy Gun Cooled Pulse Rifle Energy Cannon Improved EM Pulse Cannon Ballistic Gun Light Assault Rifle Ballistic Cannon Flak Cannon Launcher Shock Bomb Launcher Impact Weapon Impact Mace Build | -11 -10 -10 -10 -9 -8 -7 -7 -7 -7 -6 -6 -6 -6 -6 -6 ------- Run | Scr Mat Min Exi Min Mat Fac Low Low Dat Pro Fac Low Low Zio Dee Slots Evolved 8 | . . . . . 4 2 . . . . 2 . . . . Power 1 | . . . . . . 1 . . . . . . . . . Propulsion . | . . . . . . . . . . . . . . . . Utility 6 | . . . . . 3 1 . . . . 2 . . . . Weapon 1 | . . . . . 1 . . . . . . . . . . Parts Attached 225 | 6 5 5 1 1 28 73 4 13 3 18 2 5 9 4 48 Power 26 | 1 1 . . . 2 8 1 2 . 3 . . . . 8 Engine 17 | 1 1 . . . 2 5 . 2 . 3 . . . . 3 Core 4 | . . . . . . 3 1 . . . . . . . . Reactor 5 | . . . . . . . . . . . . . . . 5 Propulsion 14 | 2 . 2 . . 5 3 . . . . . . . . 2 Treads 2 | 2 . . . . . . . . . . . . . . . Leg . | . . . . . . . . . . . . . . . . Wheel 12 | . . 2 . . 5 3 . . . . . . . . 2 Hover . | . . . . . . . . . . . . . . . . Flight . | . . . . . . . . . . . . . . . . Utility 97 | 1 4 1 1 . 13 28 . 7 . 7 2 1 4 3 25 Device 54 | . 2 1 . . 4 20 . 4 . 5 . . 3 3 12 Storage 14 | 1 1 . 1 . 2 1 . 1 . . . . . . 7 Processor 3 | . . . . . . 2 . . . . . . . . 1 Hackware 5 | . . . . . 2 1 . . . . 2 . . . . Protection 21 | . 1 . . . 5 4 . 2 . 2 . 1 1 . 5 Artifact . | . . . . . . . . . . . . . . . . Weapon 88 | 2 . 2 . 1 8 34 3 4 3 8 . 4 5 1 13 Energy Gun 50 | 1 . 2 . 1 3 18 1 2 2 3 . 3 3 . 11 Energy Cannon 9 | . . . . . . 5 . . . 1 . . 1 . 2 Ballistic Gun 3 | 1 . . . . 2 . . . . . . . . . . Ballistic Cannon 2 | . . . . . 2 . . . . . . . . . . Launcher 16 | . . . . . 1 7 2 1 . 4 . 1 . . . Special Weapon . | . . . . . . . . . . . . . . . . Impact Weapon 8 | . . . . . . 4 . 1 1 . . . 1 1 . Slashing Weapon . | . . . . . . . . . . . . . . . . Piercing Weapon . | . . . . . . . . . . . . . . . . Special Melee Weapon . | . . . . . . . . . . . . . . . . Unidentified Prototypes 12 | . . . . . . 4 . . . . . . . 1 7 Corrupted Parts 3 | . . . . . . . . . . 2 . . . . 1 System Corruption 16 | . . . . . . . . . . 10 . . . . 6 Parts Lost 48 | . . 3 . 2 14 6 . 1 . 3 . . 2 . 17 Power 6 | . . . . . 1 . . . . . . . . . 5 Propulsion 12 | . . 2 . 1 4 3 . . . . . . . . 2 Utility 11 | . . . . . 4 . . 1 . 1 . . . . 5 Weapon 19 | . . 1 . 1 5 3 . . . 2 . . 2 . 5 Highest Loss Streak 9 | . . 2 . 1 4 1 . 1 . 3 . . 1 . 9 To Critical Strikes . | . . . . . . . . . . . . . . . . Average Slot Usage (%) 83 | . 99 99 100 95 78 91 83 83 62 81 85 81 77 74 76 Engine 10 | . 14 14 14 14 9 9 7 11 15 14 13 13 13 13 4 Core 1 | . . . . . . 5 6 3 . . . . . . . Treads 1 | . 28 21 . . . . . . . . . . . . . Wheel 9 | . . 6 28 24 15 14 7 7 7 7 6 6 6 6 5 Device 12 | . 8 6 14 14 8 12 15 13 15 13 13 13 13 7 12 Storage 7 | . 14 14 14 14 8 7 7 7 7 7 6 6 6 6 10 Processor 9 | . . . . . . 9 15 15 15 15 13 13 11 6 9 Hackware 1 | . . . . . 2 3 . . . . 12 2 . . . Protection 4 | . 4 7 . . 8 3 . . . . . 4 7 13 6 Energy Gun 13 | . 14 22 28 28 9 16 21 9 1 10 6 6 5 18 16 Energy Cannon 1 | . . . . . . 3 . . . 3 . . . . 2 Ballistic Gun 1 | . 14 5 . . 8 . . . . . . . . . . Launcher 3 | . . . . . . . . 7 . 4 13 12 7 . . Impact Weapon 1 | . . . . . . . . 5 . 1 . . 2 1 . Naked Turns . | . . . . . . . . . . . . . . . . Heaviest Build 271 | 12 36 36 51 51 232 245 179 253 236 253 247 267 271 268 268 Greatest Support 48 | 40 40 40 26 26 26 28 28 28 28 28 28 28 28 28 48 Greatest Overweight (x) 76 | 3 . 1 1 3 22 22 6 9 8 9 8 9 9 9 76 Average Overweight (x) 7 | . . . 1 1 11 10 5 7 8 8 8 8 9 9 7 Largest Inventory Capacity 35 | 8 15 15 20 20 35 35 30 35 35 35 35 35 35 35 35 Average Capacity 32 | 7 14 15 18 20 34 34 30 34 35 35 35 35 35 35 32 Most Carried 35 | 4 15 15 18 20 35 35 30 35 35 35 34 35 35 35 35 Average Carried 30 | 2 7 14 15 19 26 34 29 34 35 34 33 33 33 34 29 Final Capacity 35 | 8 15 15 20 20 35 30 30 35 35 35 35 35 35 35 5 Final Carried 35 | 4 15 13 18 20 35 30 30 35 35 34 34 33 32 35 4 Class Distribution -------------------- 54% | Hauler-Mutant 21% | Hauler-Tank 9% | Hauler-Skirmisher 7% | Mutant 5% | Hauler-Gunner Dominant Class ---------------- Mutant | -10/Materials Mutant | -10/Mines Mutant | -10/Exiles Mutant | -9/Mines Hauler-Tank | -8/Materials Hauler-Tank | -7/Factory Hauler-Mutant | -7/Lower Caves Hauler-Mutant | -7/Lower Caves Hauler-Mutant | -7/Data Miner Hauler-Mutant | -6/Proximity Caves Hauler-Mutant | -6/Factory Hauler-Mutant | -6/Lower Caves Hauler-Mutant | -6/Lower Caves Hauler-Mutant | -6/Zion Hauler-Gunner | -6/Deep Caves Resources | -11 -10 -10 -10 -9 -8 -7 -7 -7 -7 -6 -6 -6 -6 -6 -6 ----------- Run | Scr Mat Min Exi Min Mat Fac Low Low Dat Pro Fac Low Low Zio Dee Matter Collected 5074 | 132 209 221 156 156 1192 1196 233 357 . 252 . 332 159 50 429 Remotely 347 | . . . . . . 347 . . . . . . . . . Salvage Created 6433 | . 318 289 . 110 1575 1856 249 . . 235 . 383 485 . 933 Parts 284 | . 24 15 . 8 94 76 9 . . 11 . 16 15 . 16 Haulers Intercepted 4 | . 1 . . . 2 1 . . . . . . . . . Recyclers Shooed 1 | . . . . . . 1 . . . . . . . . . Parts Field Recycled . | . . . . . . . . . . . . . . . . Retrieved Matter . | . . . . . . . . . . . . . . . . Parts Self-Destructed 41 | . . . . . . . 2 . . 13 . 14 12 . . Prevented 25 | . . . . . . . 2 . . 5 . 11 7 . . Kills | -11 -10 -10 -10 -9 -8 -7 -7 -7 -7 -6 -6 -6 -6 -6 -6 ------- Run | Scr Mat Min Exi Min Mat Fac Low Low Dat Pro Fac Low Low Zio Dee Combat Hostiles Destroyed 141 | . 7 7 . 4 36 43 3 . . 5 . 7 11 . 18 Guns 72 | . 7 6 . 4 16 19 . . . 1 . . 3 . 16 Cannons 26 | . . . . . 18 8 . . . . . . . . . AOE 36 | . . 1 . . 2 14 3 . . 3 . 6 7 . . Classes Destroyed 23 | . 5 . . 1 8 3 . . . 2 . . 1 . 3 Worker 9 | . 2 . . . 6 1 . . . . . . . . . Builder 4 | . . . . . 1 3 . . . . . . . . . Tunneler 1 | . . . . . 1 . . . . . . . . . . Hauler 4 | . 1 . . . 2 1 . . . . . . . . . Recycler 2 | . . . . . 2 . . . . . . . . . . Minesweeper 3 | . . . . . . . . . . 1 . 2 . . . Mechanic 1 | . . . . . . 1 . . . . . . . . . Operator 1 | . . . . . 1 . . . . . . . . . . Watcher 9 | . 1 . . . 3 5 . . . . . . . . . Swarmer 31 | . 3 3 . 3 9 . 2 . . 3 . 4 4 . . Cutter 2 | . . . . . 2 . . . . . . . . . . Grunt 53 | . 4 4 . . 15 26 . . . 1 . 1 2 . . Brawler 3 | . . . . 1 . 1 . . . . . . 1 . . Duelist 3 | . . . . . 1 1 . . . . . . 1 . . Protector 1 | . . . . . . 1 . . . . . . . . . Sentry 14 | . . . . . 8 2 1 . . . . 1 2 . . Hunter 7 | . . . . . 1 5 . . . . . 1 . . . Programmer 7 | . . . . . . 7 . . . . . . . . . Behemoth 1 | . . . . . . . . . . 1 . . . . . Z-Light 6 | . . . . . . . . . . . . . . . 6 Assembled 9 | . . . . . . . . . . . . . . . 9 Golem 2 | . . . . . . . . . . . . . . . 2 Thug 1 | . . 1 . . . . . . . . . . . . . Savage 1 | . . . . . . . . . . . . 1 . . . Butcher 1 | . . . . . . . . . . . . . . . 1 Mutant 1 | . . . . . . . . . . . . . 1 . . Best Kill Streak 10 | . 4 2 . 3 7 10 3 . . 3 . 3 4 . 9 Combat Bots Only 9 | . 3 2 . 3 5 9 3 . . 3 . 3 4 . 9 Max Kills in Single Turn 6 | . 2 1 . 1 2 6 1 . . 2 . 2 1 . 1 Gunslinging 1 | . 1 . . . . . . . . . . . . . . Exploded 6 | . . 1 . . 1 6 1 . . 2 . 2 1 . . Melee . | . . . . . . . . . . . . . . . . Uniques/NPCs Destroyed 1 | . . . . . . . . . . . . . . . 1 Z-Imprinter (-6/Deep Caves) Combat | -11 -10 -10 -10 -9 -8 -7 -7 -7 -7 -6 -6 -6 -6 -6 -6 -------- Run | Scr Mat Min Exi Min Mat Fac Low Low Dat Pro Fac Low Low Zio Dee Damage Taken 10012 | . 375 401 . 266 2437 1818 161 74 . 551 . 217 349 . 3363 Core 1092 | . 60 62 . 51 211 145 5 . . 45 . . 30 . 483 Absorbed by Shields 768 | . . . . . . 340 . 6 . 46 . 80 128 . 168 Redirected to Shielding 324 | . . . . . . . . . . . . . . . 324 Regen/Repaired (Parts) 219 | . . . . . 61 158 . . . . . . . . . Core Remaining (%) 65 | 100 . . . 30 61 . . . . 72 . . . . . Volleys Fired 504 | . 43 35 . 11 125 101 22 2 . 21 . 48 31 2 63 Largest 3 | . 2 2 . 2 3 3 2 2 . 3 . 2 3 1 3 Hottest 206 | . 70 90 . 90 165 178 72 75 . 144 . 75 158 69 206 Shots Fired 1127 | . 86 68 . 22 349 282 34 8 . 49 . 51 48 2 128 Gun 897 | . 86 68 . 22 266 211 22 5 . 30 . 31 31 2 123 Cannon 161 | . . . . . 79 56 . . . 17 . . 4 . 5 Launcher 69 | . . . . . 4 15 12 3 . 2 . 20 13 . . Special . | . . . . . . . . . . . . . . . . Kinetic 327 | . 43 13 . . 245 26 . . . . . . . . . Thermal 562 | . 43 45 . 12 99 210 18 2 . 19 . 7 26 2 79 Explosive 35 | . . . . . . 14 12 . . 2 . 4 3 . . Electromagnetic 203 | . . 10 . 10 5 32 4 6 . 28 . 40 19 . 49 Robot Hit Streak 38 | . 12 7 . 9 12 38 6 2 . 15 . 7 9 . 16 Robot Miss Streak 8 | . 4 3 . 2 8 3 1 1 . 1 . 3 3 . 3 Penetration Max . | . . . . . . . . . . . . . . . . Secondary Targets 17 | . 3 2 . 2 3 1 . . . . . . 1 . 5 Max Gunslinging Chain 1 | . 1 1 . 1 1 1 . . . . . . 1 . 1 Shots Hit Robots 749 | . 58 48 . 15 227 201 6 2 . 40 . 24 31 . 97 Core Hits 437 | . 18 18 . 6 153 117 11 3 . 13 . 22 29 . 47 Critical Kills . | . . . . . . . . . . . . . . . . Critical Parts Destroyed 1 | . . . . . 1 . . . . . . . . . . Critical Strikes 22 | . 2 1 . . 4 6 . . . 2 . 1 . . 6 Burn 15 | . 2 1 . . 3 6 . . . 2 . . . . 1 Destroy 1 | . . . . . 1 . . . . . . . . . . Corrupt 6 | . . . . . . . . . . . . 1 . . 5 Melee Attacks 98 | . . . . . . 7 . 44 . . . . 39 8 . Impact 98 | . . . . . . 7 . 44 . . . . 39 8 . Slashing . | . . . . . . . . . . . . . . . . Piercing . | . . . . . . . . . . . . . . . . Sneak Attacks . | . . . . . . . . . . . . . . . . Combat Hostiles . | . . . . . . . . . . . . . . . . Follow-up Attacks . | . . . . . . . . . . . . . . . . Damage Inflicted 17505 | . 799 691 . 167 3156 6204 531 46 . 916 . 1138 1270 . 2587 Guns 9798 | . 797 614 . 167 1723 2773 106 29 . 428 . 268 418 . 2475 Cannons 2871 | . . . . . 1311 1010 . . . 318 . . 120 . 112 Explosions 4817 | . . 72 . . 122 2409 425 17 . 170 . 870 732 . . Melee . | . . . . . . . . . . . . . . . . Ramming 19 | . 2 5 . . . 12 . . . . . . . . . Kinetic 3027 | . 411 115 . . 2081 420 . . . . . . . . . Thermal 7680 | . 386 512 . 100 940 2811 189 18 . 354 . 197 343 . 1830 Explosive 3369 | . . . . . . 2280 294 . . 170 . 235 390 . . Electromagnetic 3410 | . . 59 . 67 135 681 48 28 . 392 . 706 537 . 757 Impact . | . . . . . . . . . . . . . . . . Slashing . | . . . . . . . . . . . . . . . . Piercing . | . . . . . . . . . . . . . . . . Highest Corruption 17 | . . . . . . 7 7 7 7 17 . . . . 8 Average Corruption 5 | . . . . . . 3 7 7 7 7 . . . . 6 Corruption Purged . | . . . . . . . . . . . . . . . . Corruption Blocked . | . . . . . . . . . . . . . . . . Effects 308 | . . . . . . 101 55 64 6 49 . . . . 33 Message Errors 74 | . . . . . . 24 14 17 2 12 . . . . 5 Matter Fused 69 | . . . . . . 21 14 9 2 17 . . . . 6 Heat Flow Errors 39 | . . . . . . 14 6 5 . 10 . . . . 4 Energy Discharges 42 | . . . . . . 12 5 17 1 5 . . . . 2 Parts Rejected 1 | . . . . . . . . . . . . . . . 1 Data Loss (minor) 47 | . . . . . . 14 12 6 . 4 . . . . 11 Data Loss (major) 13 | . . . . . . 7 . 3 1 1 . . . . 1 Misfires 12 | . . . . . . 4 2 5 . . . . . . 1 Alerts 6 | . . . . . . 2 2 2 . . . . . . . Weapon Failures 5 | . . . . . . 3 . . . . . . . . 2 Overload Shots 62 | . . . . . . 13 12 . . . . . 11 . 26 Effects 2 | . . . . . . . 1 . . . . . 1 . . Energy Bleed 2 | . . . . . . . 1 . . . . . 1 . . Overflow Damage 193 | . . . . . 1 117 47 . . 10 . 11 7 . . Projectiles 41 | . . . . . . 31 . . . 10 . . . . . Explosions 152 | . . . . . 1 86 47 . . . . 11 7 . . Melee . | . . . . . . . . . . . . . . . . Knockbacks 61 | . . . . . 44 17 . . . . . . . . . Impact . | . . . . . . . . . . . . . . . . Kinetic 60 | . . . . . 43 17 . . . . . . . . . Secondary 1 | . . . . . 1 . . . . . . . . . . Self-Inflicted Damage 362 | . . 29 . . . 177 84 18 . . . 34 20 . . Shots 16 | . . 1 . . . 7 2 2 . . . 2 2 . . Rammed 4 | . 1 1 . . . 2 . . . . . . . . . Targets Rammed 4 | . 1 1 . . . 2 . . . . . . . . . Kicked . | . . . . . . . . . . . . . . . . Crushed . | . . . . . . . . . . . . . . . . Highest Temperature 583 | . 27 330 . 5 325 302 231 249 . 351 . 248 436 116 583 Average Temperature 100 | . 6 92 . 5 115 81 56 79 . 115 . 67 135 58 167 Received Heat Transfer 3181 | . 180 222 . 48 999 536 18 45 . 81 . 42 42 . 968 Effects 19 | . . 2 . . 3 1 . . . . . . 1 . 12 Shutdowns 1 | . . . . . 1 . . . . . . . . . . Energy Bleed 4 | . . . . . . 1 . . . . . . . . 3 Interference 4 | . . 2 . . 2 . . . . . . . . . . Matter Decay 1 | . . . . . . . . . . . . . . . 1 Short Circuit 2 | . . . . . . . . . . . . . 1 . 1 Damage (minor) 1 | . . . . . . . . . . . . . . . 1 Damage (major) 6 | . . . . . . . . . . . . . . . 6 Siege Activations . | . . . . . . . . . . . . . . . . Robots Corrupted 9 | . . . . . . 1 . . . 2 . 3 1 . 2 Combat Hostiles 5 | . . . . . . . . . . 1 . 1 1 . 2 Parts Fried 11 | . . . . . . 1 . . . 3 . 5 1 . 1 Impact Corruptions . | . . . . . . . . . . . . . . . . Robots Melted 2 | . . . . . . 2 . . . . . . . . . Combat Hostiles 2 | . . . . . . 2 . . . . . . . . . Parts Melted 25 | . 1 1 . . 3 10 . . . . . . . . 10 Heat Transferred 15347 | . 1295 1436 . 225 2478 5713 211 37 . 777 . 335 594 . 2246 Parts Sabotaged . | . . . . . . . . . . . . . . . . Parts Stolen . | . . . . . . . . . . . . . . . . Parts Stripped . | . . . . . . . . . . . . . . . . Power Chain Reactions 5 | . . 2 . . . 1 1 . . . . 1 . . . Missiles Intercepted . | . . . . . . . . . . . . . . . . Alert | -11 -10 -10 -10 -9 -8 -7 -7 -7 -7 -6 -6 -6 -6 -6 -6 ------- Run | Scr Mat Min Exi Min Mat Fac Low Low Dat Pro Fac Low Low Zio Dee Peak Influence 1108 | . 269 166 . 100 380 1108 . . . . 25 . . . . Initial 59 | . . 26 . . 17 59 . . . . 25 . . . . Average 251 | . 117 63 . 55 168 363 . . . . 25 . . . . Maximum Alert Level 4 | . 1 . . . 1 4 . . . . . . . . . Low Security (%) 48 | 100 78 100 . 100 60 25 . . . . 100 . . . . Level 1 35 | . 21 . . . 39 45 . . . . . . . . . Level 2 11 | . . . . . . 22 . . . . . . . . . Level 3 3 | . . . . . . 7 . . . . . . . . . Level 4 . | . . . . . . . . . . . . . . . . Level 5 . | . . . . . . . . . . . . . . . . High Security . | . . . . . . . . . . . . . . . . Max Security . | . . . . . . . . . . . . . . . . Squads Dispatched 29 | . 2 1 . . 7 18 . . . . . . 1 . . Investigation 7 | . 2 1 . . 1 3 . . . . . . . . . Extermination 7 | . . . . . . 7 . . . . . . . . . Reinforcement 9 | . . . . . 5 4 . . . . . . . . . Assault 4 | . . . . . . 3 . . . . . . 1 . . Garrison 2 | . . . . . 1 1 . . . . . . . . . Intercept . | . . . . . . . . . . . . . . . . Construction Impeded 2 | . . . . . . 2 . . . . . . . . . Haulers Reinforced 1 | . . . . . . 1 . . . . . . . . . Active Scanning Responses . | . . . . . . . . . . . . . . . . Cargo Convoy Interrupts . | . . . . . . . . . . . . . . . . Stealth | -11 -10 -10 -10 -9 -8 -7 -7 -7 -7 -6 -6 -6 -6 -6 -6 --------- Run | Scr Mat Min Exi Min Mat Fac Low Low Dat Pro Fac Low Low Zio Dee Distress Signals 9 | . 3 . . . 5 . . . . . . 1 . . . Communications Jammed 2 | . . . . . . 2 . . . . . . . . . Distress Signals 2 | . . . . . . 2 . . . . . . . . . Times Spotted 230 | . 13 8 . 10 58 64 3 2 . 5 . 17 14 . 36 Peak Tracking Total 29 | . 4 3 . 3 7 10 2 1 . 1 . 7 6 . 29 Tactical Retreats 9 | . 1 1 . 2 . . . . . . . 2 2 . 1 Traps | -11 -10 -10 -10 -9 -8 -7 -7 -7 -7 -6 -6 -6 -6 -6 -6 ------- Run | Scr Mat Min Exi Min Mat Fac Low Low Dat Pro Fac Low Low Zio Dee Traps Triggered 3 | . 1 . . . 1 1 . . . . . . . . . Indirectly 1 | . . . . . 1 . . . . . . . . . . Trap Hack Attempts . | . . . . . . . . . . . . . . . . Triggered . | . . . . . . . . . . . . . . . . Disarmed . | . . . . . . . . . . . . . . . . Reprogrammed . | . . . . . . . . . . . . . . . . Reused . | . . . . . . . . . . . . . . . . Traps Extracted . | . . . . . . . . . . . . . . . . Installed . | . . . . . . . . . . . . . . . . Triggered 6 | . . . . . . . 1 . . 1 . . 4 . . Machines | -11 -10 -10 -10 -9 -8 -7 -7 -7 -7 -6 -6 -6 -6 -6 -6 ---------- Run | Scr Mat Min Exi Min Mat Fac Low Low Dat Pro Fac Low Low Zio Dee Machines Disabled 14 | . . 1 . . . 5 . . . . . 4 3 1 . Max in Single Turn 4 | . . 1 . . . 4 . . . . . 2 1 1 . Garrison Access 2 | . . . . . . 1 . . . . 1 . . . . Machines Sabotaged . | . . . . . . . . . . . . . . . . Garrisons Compromised . | . . . . . . . . . . . . . . . . Overloaded Fab Kills . | . . . . . . . . . . . . . . . . Hacking | -11 -10 -10 -10 -9 -8 -7 -7 -7 -7 -6 -6 -6 -6 -6 -6 --------- Run | Scr Mat Min Exi Min Mat Fac Low Low Dat Pro Fac Low Low Zio Dee Machines Accessed 35 | . 1 1 1 . 10 12 . 2 4 . 3 . . 1 . Terminals 15 | . . 1 . . 7 6 . . . . 1 . . . . Fabricators 1 | . . . . . . . . . . . 1 . . . . Repair Stations 2 | . . . . . 1 1 . . . . . . . . . Recycling Units 5 | . 1 . . . 2 2 . . . . . . . . . Scanalyzers 2 | . . . . . . 2 . . . . . . . . . Garrison Access 2 | . . . . . . 1 . . . . 1 . . . . Total Hacks 124 | . 1 3 1 . 29 42 . 6 31 . 5 . . 6 . Successful 90 | . 1 . 1 . 17 26 . 6 31 . 2 . . 6 . Failed 33 | . . 3 . . 11 16 . . . . 3 . . . . Catastrophic 3 | . . . . . . 3 . . . . . . . . . Database Lockouts 1 | . . . . . 1 . . . . . . . . . . Manual 43 | . 1 3 . . 22 16 . . . . 1 . . . . Terminals 51 | . . 3 . . 25 22 . . . . 1 . . . . Fabricators 2 | . . . . . . . . . . . 2 . . . . Repair Stations 6 | . . . . . 2 4 . . . . . . . . . Recycling Units 6 | . 1 . . . 2 3 . . . . . . . . . Scanalyzers 8 | . . . . . . 8 . . . . . . . . . Garrison Access 7 | . . . . . . 5 . . . . 2 . . . . Terminal Hacks 59 | . . . 1 . 8 6 . 6 31 . 1 . . 6 . Record 17 | . . . 1 . . . . 5 11 . . . . . . Part Schematic 19 | . . . . . 1 . . . 12 . . . . 6 . Robot Schematic 5 | . . . . . . . . . 5 . . . . . . Robot Analysis 1 | . . . . . . 1 . . . . . . . . . Prototype ID Bank 4 | . . . . . 1 . . . 3 . . . . . . Open Door 1 | . . . . . . . . 1 . . . . . . . Open DSF 1 | . . . . . . . . . . . 1 . . . . Branch Access Points 1 | . . . . . . 1 . . . . . . . . . Terminal Index 2 | . . . . . 1 1 . . . . . . . . . Alert Level 3 | . . . . . 1 2 . . . . . . . . . Unreport Threat 2 | . . . . . 2 . . . . . . . . . . Locate Traps 3 | . . . . . 2 1 . . . . . . . . . Fabricator Hacks . | . . . . . . . . . . . . . . . . Repair Station Hacks 6 | . . . . . 2 4 . . . . . . . . . Scan Component 3 | . . . . . 1 2 . . . . . . . . . Repair 3 | . . . . . 1 2 . . . . . . . . . Recycling Unit Hacks 2 | . . . . . 1 1 . . . . . . . . . Retrieve Components 2 | . . . . . 1 1 . . . . . . . . . Scanalyzer 8 | . . . . . . 8 . . . . . . . . . Insert Component 4 | . . . . . . 4 . . . . . . . . . Analyze 4 | . . . . . . 4 . . . . . . . . . Garrison Access Hacks 1 | . . . . . . . . . . . 1 . . . . Seal Access 1 | . . . . . . . . . . . 1 . . . . Unauthorized Hacks 14 | . 1 . . . 6 7 . . . . . . . . . Terminals 9 | . . . . . 5 4 . . . . . . . . . Assimilate 5 | . . . . . 3 2 . . . . . . . . . Botnet 2 | . . . . . 1 1 . . . . . . . . . Operators 2 | . . . . . 1 1 . . . . . . . . . Fabricators . | . . . . . . . . . . . . . . . . Repair Stations . | . . . . . . . . . . . . . . . . Recycling Units 4 | . 1 . . . 1 2 . . . . . . . . . Tunnel 4 | . 1 . . . 1 2 . . . . . . . . . Scanalyzers . | . . . . . . . . . . . . . . . . Garrison Access 1 | . . . . . . 1 . . . . . . . . . Jam 1 | . . . . . . 1 . . . . . . . . . Data Cores Recovered . | . . . . . . . . . . . . . . . . Used . | . . . . . . . . . . . . . . . . Hacking Detections 21 | . . 1 . . 9 9 . . . . 2 . . . . Full Trace Events 1 | . . 1 . . . . . . . . . . . . . Feedback Events . | . . . . . . . . . . . . . . . . Feedback Blocked . | . . . . . . . . . . . . . . . . Robot Schematics Acquired 8 | . . . . . . . . . 5 . . . . 3 . Robots Built . | . . . . . . . . . . . . . . . . Authchips . | . . . . . . . . . . . . . . . . Time . | . . . . . . . . . . . . . . . . Total Robot Build Rating . | . . . . . . . . . . . . . . . . Part Schematics Acquired 38 | . . . . . 1 4 . . 12 . . . . 21 . Parts Built . | . . . . . . . . . . . . . . . . Authchips . | . . . . . . . . . . . . . . . . Time . | . . . . . . . . . . . . . . . . Total Part Build Rating . | . . . . . . . . . . . . . . . . Parts Repaired 3 | . . . . . 1 2 . . . . . . . . . Time 218 | . . . . . 38 180 . . . . . . . . . Parts Recycled . | . . . . . . . . . . . . . . . . Recycled Matter . | . . . . . . . . . . . . . . . . Retrieved Matter . | . . . . . . . . . . . . . . . . Retrieved Components 11 | . . . . . 10 1 . . . . . . . . . Parts Scanalyzed 4 | . . . . . . 4 . . . . . . . . . Part Schematics Acquired 4 | . . . . . . 4 . . . . . . . . . Parts Damaged 1 | . . . . . . 1 . . . . . . . . . Bothacking | -11 -10 -10 -10 -9 -8 -7 -7 -7 -7 -6 -6 -6 -6 -6 -6 ------------ Run | Scr Mat Min Exi Min Mat Fac Low Low Dat Pro Fac Low Low Zio Dee Used RIF Installer . | . . . . . . . . . . . . . . . . Robots Hacked . | . . . . . . . . . . . . . . . . Non-combat . | . . . . . . . . . . . . . . . . Combat . | . . . . . . . . . . . . . . . . Robot Hacks Applied . | . . . . . . . . . . . . . . . . Relay Couplers Released . | . . . . . . . . . . . . . . . . Fabnet Peak Effective % . | . . . . . . . . . . . . . . . . Robots Rewired 4 | . . . . . . . . . . . . . 4 . . Allies Hacked . | . . . . . . . . . . . . . . . . Hacks Repelled . | . . . . . . . . . . . . . . . . Allies | -11 -10 -10 -10 -9 -8 -7 -7 -7 -7 -6 -6 -6 -6 -6 -6 -------- Run | Scr Mat Min Exi Min Mat Fac Low Low Dat Pro Fac Low Low Zio Dee Total Allies 13 | . . . . . 2 2 . . . 1 . . 4 4 . Largest Group 7 | . . . . . 1 1 . . . 1 1 1 3 7 7 Highest-Rated Group 155 | . . . . . 26 26 . . . 96 96 96 125 155 155 Highest-Rated Ally 96 | . . . . . 26 26 . . . 96 96 96 96 25 25 Total Orders 10 | . . . . . . 1 . . . . . . . . 9 STAY 9 | . . . . . . 1 . . . . . . . . 8 FOLLOW 1 | . . . . . . . . . . . . . . . 1 Ally Attacks 98 | . . . . . . . . . . 24 . 32 18 . 24 Total Damage 3271 | . . . . . . . . . . 1032 . 1099 623 . 517 Kills 13 | . . . . . . . . . . 3 . 7 2 . 1 Allies Corrupted . | . . . . . . . . . . . . . . . . Allies Melted . | . . . . . . . . . . . . . . . . Intel | -11 -10 -10 -10 -9 -8 -7 -7 -7 -7 -6 -6 -6 -6 -6 -6 ------- Run | Scr Mat Min Exi Min Mat Fac Low Low Dat Pro Fac Low Low Zio Dee Robot Analysis Total 1 | . . . . . . 1 . . . . . . . . . Derelict Logs Recovered 11 | . . 1 . 1 . . 1 2 . 1 . 3 1 1 . Drone Launches . | . . . . . . . . . . . . . . . . Drone Recoveries . | . . . . . . . . . . . . . . . . Exploration | -11 -10 -10 -10 -9 -8 -7 -7 -7 -7 -6 -6 -6 -6 -6 -6 ------------- Run | Scr Mat Min Exi Min Mat Fac Low Low Dat Pro Fac Low Low Zio Dee Turns Passed 25404 | 110 607 552 190 525 2437 5279 1797 2058 213 1792 339 2920 1918 2123 2544 Spaces Moved 10052 | 65 274 311 177 346 742 1834 879 823 95 733 153 1208 702 887 823 Core 12 | 10 . . . . . . . . . . . . . . 2 Treads 531 | 55 274 202 . . . . . . . . . . . . . Legs . | . . . . . . . . . . . . . . . . Wheels 9509 | . . 109 177 346 742 1834 879 823 95 733 153 1208 702 887 821 Hover . | . . . . . . . . . . . . . . . . Flight . | . . . . . . . . . . . . . . . . Fastest Speed 50 | 50 160 105 105 105 110 190 175 190 220 220 220 220 235 235 100 Average Speed 216 | 150 160 140 105 107 249 241 189 217 220 220 220 232 235 235 222 Slowest Speed 3850 | 200 160 160 105 145 410 410 190 235 220 235 220 235 235 235 3850 Overloaded Moves . | . . . . . . . . . . . . . . . . Propulsion Burnouts . | . . . . . . . . . . . . . . . . Robots Hopped . | . . . . . . . . . . . . . . . . Cave-ins Triggered . | . . . . . . . . . . . . . . . . Exploration Rate (%) 62 | 4 53 58 54 81 73 42 90 72 70 79 4 94 86 78 56 Regions Visited 15 Branch Regions 11 Pre-discovered Areas 11 | . 1 . 1 1 1 2 1 1 1 . . 1 . 1 . Known Exits Taken 7 | . . . . . . 1 1 1 1 1 1 1 . . . Unknown Exits Taken 8 | 1 1 1 1 1 1 . . . . . . . 1 1 . Scrap Searched 17 | . . 1 . 2 . . 4 1 . 3 . 1 2 3 . Spaces Dug 107 | . . . . . . 13 8 42 . . . . 42 2 . Terrain Destroyed 317 | . . 4 . . . 94 82 42 . 8 . 18 64 2 3 Melee 90 | . . . . . . 7 . 42 . . . . 39 2 . Projectile 30 | . . . . . . 9 12 . . . . . 6 . 3 AOE 197 | . . 4 . . . 78 70 . . 8 . 18 19 . . Terrain Rammed . | . . . . . . . . . . . . . . . . Walls Destroyed . | . . . . . . . . . . . . . . . . Machines Disabled . | . . . . . . . . . . . . . . . . Actions | -11 -10 -10 -10 -9 -8 -7 -7 -7 -7 -6 -6 -6 -6 -6 -6 --------- Run | Scr Mat Min Exi Min Mat Fac Low Low Dat Pro Fac Low Low Zio Dee Total 12552 | 74 356 356 181 480 1086 2453 975 1007 100 866 156 1272 857 909 1424 Wait 1302 | . 19 2 . 112 121 361 66 106 . 78 . 9 44 5 379 Move 10038 | 64 273 310 176 345 741 1834 878 822 94 732 152 1207 701 886 823 Hop . | . . . . . . . . . . . . . . . . Pick Up 220 | 4 11 2 3 7 63 34 2 6 . 9 2 1 2 3 71 Fast Attach 54 | 6 3 . . . 6 9 1 6 3 . . . . . 20 Attach 69 | . 1 3 . 1 16 18 1 3 . 8 2 1 3 . 12 Detach 23 | . 1 . . . 1 5 . . . 2 . 2 1 . 11 Swap 102 | . 1 2 1 . 6 46 2 4 . 10 . 4 6 4 16 Drop 105 | . 3 1 1 4 7 37 3 9 3 6 . . 1 1 29 Fire 504 | . 43 35 . 11 125 101 22 2 . 21 . 48 31 2 63 Melee 98 | . . . . . . 7 . 44 . . . . 39 8 . Ram 1 | . . . . . . 1 . . . . . . . . . Kick . | . . . . . . . . . . . . . . . . Crush 2 | . 1 1 . . . . . . . . . . . . . Escape Stasis . | . . . . . . . . . . . . . . . . Rewire 34 | . . . . . . . . 5 . . . . 29 . . Trap . | . . . . . . . . . . . . . . . . Miscellaneous . | . . . . . . . . . . . . . . . . Route ------- -11/Scrapyard -10/Materials (discovered 2 exits: [*Mat] / *Min) -10/Mines (discovered 3 exits: [*Mat x2] / *Exi) -10/Exiles -9/Mines (discovered 2 exits: *Mat x2) -8/Materials (discovered 3 exits: *Fac x2 / [*Sto]) -7/Factory (discovered 3 exits: *Fac / *Low x2) -7/Lower Caves -7/Lower Caves (discovered 2 exits: Fac / *Dat) -7/Data Miner -6/Proximity Caves -6/Factory (discovered 5 exits: Fac x3 / *Low / DSF) -6/Lower Caves -6/Lower Caves (discovered 2 exits: *Fac / *Zio) -6/Zion (discovered 2 exits: [*Dee] / [*Pro]) -6/Deep Caves History --------- Turn | Location | Event 12 | -11/Scrapyard | Discovered new exit (range 16) 111 | -11/Scrapyard | Entered Materials 311 | -10/Materials | Build established: Mutant 567 | -10/Materials | Discovered new exit (range 12) 691 | -10/Materials | Discovered new exit (range 14) 718 | -10/Materials | Entered Mines 758 | -10/Mines | Met a Derelict bent on vengeance 851 | -10/Mines | Found a damaged Exp. Sensor Array with a note attached 854 | -10/Mines | Found Prototype Device 870 | -10/Mines | Learned Materials emergency access door positions 891 | -10/Mines | Discovered new exit (range 3) 971 | -10/Mines | Discovered new exit (range 9) 1241 | -10/Mines | Assembled infested the area 1246 | -10/Mines | Assisted by a Guerilla fighting off Assembled 1249 | -10/Mines | Deemed a non-threat by the Exiles lab entrance 1249 | -10/Mines | Discovered new exit (range 5) 1270 | -10/Mines | Entered Exiles 1296 | -10/Exiles | Met 8R-AWN 1314 | -10/Exiles | Met EX-HEX 1372 | -10/Exiles | Met EX-DEC 1389 | -10/Exiles | Learned location of Zion (-6) 1450 | -10/Exiles | Discovered new exit (range 11) 1460 | -10/Exiles | Entered Mines 1462 | -9/Mines | Core integrity fell below 50% 1676 | -9/Mines | Found a hidden stash of uninstalled traps 1711 | -9/Mines | Discovered new exit (range 8) 1829 | -9/Mines | Discovered new exit (range 6) 1985 | -9/Mines | Entered Materials 1985 | -8/Materials | Evolved 4 slots: Utility x3, Weapon x1 2275 | -8/Materials | Central database locked down 2534 | -8/Materials | Build established: Hauler-Tank 2630 | -8/Materials | Lost 4 parts (1n2u1w) 2911 | -8/Materials | Repaired Flak Cannon 3136 | -8/Materials | Garrison activated, responded to threat 3263 | -8/Materials | Lost 3 parts (1u2w) 3546 | -8/Materials | Discovered new exit (range 10) 3775 | -8/Materials | Discovered new exit (range 12) 4058 | -8/Materials | Lost 3 parts (1n1u1w) 4307 | -8/Materials | Build established: Hauler-Mutant 4366 | -8/Materials | Discovered new exit (range 8) 4422 | -8/Materials | Entered Factory 4422 | -7/Factory | Evolved 2 slots: Power x1, Utility x1 4423 | -7/Factory | Identified Exp. Sensor Array 4750 | -7/Factory | Build established: Hauler-Skirmisher 5058 | -7/Factory | Garrison activated, responded to threat 5890 | -7/Factory | Build established: Hauler-Tank 7374 | -7/Factory | Discovered new exit (range 15) 7420 | -7/Factory | Identified exit to Factory 7633 | -7/Factory | Repaired Broken Exp. Sensor Array 7678 | -7/Factory | Repaired Med. Insulated Plating 7970 | -7/Factory | Build established: Hauler-Skirmisher 8228 | -7/Factory | Identified exit to Lower Caves 8356 | -7/Factory | Build established: Hauler-Tank 8912 | -7/Factory | Build established: Hauler-Skirmisher 9222 | -7/Factory | First assault squad dispatched 9323 | -7/Factory | Destroyed 9 combat bots 9701 | -7/Factory | Entered Lower Caves 9869 | -7/Lower Caves | Build established: Hauler-Mutant 11431 | -7/Lower Caves | Discovered new exit (range 13) 11446 | -7/Lower Caves | Attracted the attention of an 0b10 checkpoint 11473 | -7/Lower Caves | Identified exit to Lower Caves 11498 | -7/Lower Caves | Entered another Lower Caves area 12215 | -7/Lower Caves | Learned 8 Factory zone layouts 12215 | -7/Lower Caves | Learned Research security intel 12215 | -7/Lower Caves | Learned Research garrison access intel 12215 | -7/Lower Caves | Learned Extension garrison access intel 12966 | -7/Lower Caves | Discovered new exit (range 14) 13554 | -7/Lower Caves | Identified exit to Data Miner 13556 | -7/Lower Caves | Entered Data Miner 13558 | -7/Data Miner | Discovered new exit (range 6) 13600 | -7/Data Miner | Met Data Miner 13646 | -7/Data Miner | Learned location of Section 7 (-2) 13646 | -7/Data Miner | Acquired the access code to Warlord's prototype stash 13681 | -7/Data Miner | Received God Mode back door access code from Data Miner 13732 | -7/Data Miner | Identified exit to Proximity Caves 13769 | -7/Data Miner | Entered Proximity Caves 14122 | -6/Proximity Caves | Escorted by Enhanced Grunt 14430 | -6/Proximity Caves | Build established: Hauler-Skirmisher 14719 | -6/Proximity Caves | Spotted B-75 Beast 14764 | -6/Proximity Caves | Destroyed B-75 Beast 14794 | -6/Proximity Caves | Lost 3 parts (1u2w) 15188 | -6/Proximity Caves | Learned location of 1 exit from Factory 15318 | -6/Proximity Caves | Build established: Hauler-Mutant 15561 | -6/Proximity Caves | System corruption reached 10% 15561 | -6/Proximity Caves | Entered Factory 15561 | -6/Factory | Accompanied by 1 ally 15561 | -6/Factory | Evolved 2 slots: Utility x2 15562 | -6/Factory | Identified exit to Factory 15563 | -6/Factory | Identified exit to Lower Caves 15768 | -6/Factory | Identified exit to DSF 15900 | -6/Factory | Entered Lower Caves 15900 | -6/Lower Caves | Accompanied by 1 ally 16018 | -6/Lower Caves | Encountered a Warlord checkpoint 16048 | -6/Lower Caves | Learned location of 1 exit from Proximity Caves 16431 | -6/Lower Caves | Attracted the attention of an 0b10 base 17662 | -6/Lower Caves | Learned Factory emergency access door positions 17754 | -6/Lower Caves | Learned location of Extension (-5) 18437 | -6/Lower Caves | Discovered new exit (range 13) 18818 | -6/Lower Caves | Identified exit to Lower Caves 18820 | -6/Lower Caves | Entered another Lower Caves area 18820 | -6/Lower Caves | Accompanied by 1 ally 19004 | -6/Lower Caves | Discovered exit to Factory (range 16) 19348 | -6/Lower Caves | Attracted the attention of an 0b10 outpost 19503 | -6/Lower Caves | Encountered a Warlord checkpoint 20147 | -6/Lower Caves | Discovered new exit (range 5) 20308 | -6/Lower Caves | Attacked by a delusional Derelict stockpiling Unaware 20438 | -6/Lower Caves | Learned Factory terminal intel 20489 | -6/Lower Caves | Attracted the attention of an 0b10 checkpoint 20738 | -6/Lower Caves | Entered Zion 20738 | -6/Zion | Accompanied by 3 allies 20788 | -6/Zion | Given the Hacking Drone Bay 20797 | -6/Zion | Found Prototype Device 20808 | -6/Zion | Build established: Hauler-Tank 20883 | -6/Zion | Discovered new exit (range 10) 21201 | -6/Zion | Identified Hacking Drone Bay 21395 | -6/Zion | Learned Factory emergency access door positions 21491 | -6/Zion | Learned Factory emergency access door positions 21700 | -6/Zion | Build established: Hauler-Mutant 22583 | -6/Zion | Learned location of Warlord (-4) 22635 | -6/Zion | Gained Derelict followers 22842 | -6/Zion | Discovered new exit (range 5) 22844 | -6/Zion | Saw the warning signs outside the Deep Caves entrance 22861 | -6/Zion | Entered Deep Caves 22861 | -6/Deep Caves | Accompanied by 7 allies 22907 | -6/Deep Caves | Found Unknown Device 22907 | -6/Deep Caves | Identified Surveybot 24 Scanner 22916 | -6/Deep Caves | Found Surveybot 24 Chip 23334 | -6/Deep Caves | Attacked by Z-Imprinter 23372 | -6/Deep Caves | Destroyed Z-Imprinter 23395 | -6/Deep Caves | Found Prototype Protection 23395 | -6/Deep Caves | Identified Zio. Weapon Casing 23635 | -6/Deep Caves | Z-Facility disabled 23696 | -6/Deep Caves | Lost 9 parts (3p1n3u2w) 23700 | -6/Deep Caves | Found Zio. Weapon Casing 23828 | -6/Deep Caves | Found Zio. Weapon Casing 23890 | -6/Deep Caves | Found Zio. Weapon Casing 24008 | -6/Deep Caves | Found Zio. Weapon Casing 24042 | -6/Deep Caves | Build established: Hauler-Gunner 24394 | -6/Deep Caves | Spotted as-41783 24419 | -6/Deep Caves | Core integrity fell below 50% 24424 | -6/Deep Caves | Destroyed as-41783 24440 | -6/Deep Caves | Found Corrupted Unknown Device 24440 | -6/Deep Caves | Identified GOLEM Unit 25290 | -6/Deep Caves | Build established: Hauler-Tank 25314 | -6/Deep Caves | Triggered Deep Caves wall 25405 | -6/Deep Caves | Self-destructed Last Messages --------------- 25359_ Arm. Huge Wheel destroyed. 25359_ System corrupted by crushing effect (+2). 25375_ Destroyed Asb. Hover Unit. 25378_ as-71911 destroyed. 25378_ Switching to secondary target: as-90129. 25383_ Humpback destroyed. 25386_ Asb. Suspension Frame destroyed. 25388_ as-46987 destroyed. 25396_ Destroyed Asb. F-torch. 25397_ Overheating: Energy bleed (-208). 25399_ Overheating: Hrd. Light Armor Plating damaged (-34). 25399_ Overheating: Zio. Weapon Casing damaged (-47). 25399_ Overheating: GOLEM Unit damaged (-104). 25399_ Overheating: Lightning Gun damaged (-3). 25399_ as-90129 destroyed. 25403_ GOLEM Unit broken. 25403_ Overheating: Short circuit. 25403_ YVQ0O7VDRYH9E9USQ#VJPYFBG 25404_ Overheating: Matter decay (-40). 25405_ Overheating: Energy bleed (-154). Map ----- +----------------------------------------------------+ | ?????????????? ?????????????? | | ????????????? ????????????? | | ????????????? ???##???????? | | ???????????? ??# ???????? | | ???????????? ### ???????? | | ??????????? # ???????? | | ??????????? ] ##?????? | | ??????????? ###???? | | ?????????? ] ] ! #???? | | ????????? ###???? | | ????????? ] ! ##????? | | ????????? #????? | | ????????? ! ! #????? | | ????????? ! ! #????? | | ????????? ! !! #????? | | ?????????" ! #????? | | ?????????" = #????? | | ?????????" #????? | | ?????????" ! ##???? | | ????????"" ! g #???? | | ????????# ! = #???? | | ????????" !! #???? | | ????????" ! ##### | | ????????" b | | ????????"""aaaaa | | ????????"@aaa/ g | | ????????""aaa ## | | ????????" [!! ### | | ????????"" ! ##?# | | ????????" # # #??## | | ????????" #### ##%## ##???## | | ????????""" ###### ## ####?????? | | ?????????" ##### #????????? | | ?????????##########???###????????? | | | | | | | | | | | | | | | | | | | | | | | | | | | | | | | | | +----------------------------------------------------+ Best States ------------- Heat Dissipation 82 Coolant Potential 65 Energy Generation 49 Energy Capacity 1700 Matter Stores 300 Matter Capacity 300 Sight Range 16 Robot Scan Range 20 Terrain Scan Density 10 Jamming Range 12 Additional Mass Support 20 EM Shielding 2 Armor Coverage 750 Resistance: KI 15 Resistance: TH 15 Resistance: EX 15 Resistance: EM 20 Resistance: I 15 Resistance: S 15 Resistance: P 15 Propulsion Shielding 66 Weapon Shielding 100 Evasion (%) 40 Targeting Accuracy 16 Recoil Reduction 2 Offensive Hacking 22 Authchip Count 1 Item Schematics ----------------- Huge Storage Unit | -8/Materials | Hacked Exp. Sensor Array | -7/Factory | Scanalyzed Hcp. Storage Unit | -7/Factory | Scanalyzed Arm. Huge Wheel | -7/Factory | Scanalyzed Hyb. Deuterium Engine | -7/Factory | Scanalyzed Combat Drone Bay | -7/Data Miner | Free Lgt. Regenerative Plating | -7/Data Miner | Free Cld. Cesium-ion Thruster | -7/Data Miner | Free Exp. Targeting Computer | -7/Data Miner | Free Com. Ion Cannon | -7/Data Miner | Free Arm. Medium Treads | -7/Data Miner | Free Imp. Transmission Jammer | -7/Data Miner | Free Adv. Datajack | -7/Data Miner | Free Hyp. Coil Gun | -7/Data Miner | Free Point Defense Array | -7/Data Miner | Free Hvy. Phase Cannon | -7/Data Miner | Free KE Penetrator | -7/Data Miner | Free Riot Gun | -6/Zion | Free Barrage Gun | -6/Zion | Free Battle Cannon | -6/Zion | Free Slug Cannon | -6/Zion | Free Flamer | -6/Zion | Free Ripper | -6/Zion | Free Adv. Cooling System | -6/Zion | Archive Proton Cannon | -6/Zion | Archive Enh. Optical Array | -6/Zion | Archive Adv. System Restoration Module | -6/Zion | Archive Impulse Thruster | -6/Zion | Archive Adv. Heat Sink | -6/Zion | Archive Imp. Coolant Injector | -6/Zion | Archive Hvy. Machine Gun | -6/Zion | Archive Lyr. Heavy Armor Plating | -6/Zion | Archive Beamcaster | -6/Zion | Archive Variable Charge Gun | -6/Zion | Archive Adv. Terrain Scanner | -6/Zion | Archive Hyp. Gauss Cannon | -6/Zion | Archive Phase Gun | -6/Zion | Archive Lrn. Phase Cannon | -6/Zion | Archive Robot Schematics ------------------ M-28 Smith | -7/Data Miner | Free E-15 Imp | -7/Data Miner | Free R-10 Processor | -7/Data Miner | Free X-62 Marksman | -7/Data Miner | Free Y-64 Sentinel | -7/Data Miner | Free A-02 Transporter | -6/Zion | Archive H-66 Slayer | -6/Zion | Archive R-06 Scavenger | -6/Zion | Archive Fabricated ------------ Nothing Alien Tech Used ----------------- None Achievements -------------- None Challenges ------------ None Game ------ Seed WeightDirtyGun Manual? 0 Play Time 01:38:12 Cumulative 168.0 hours Start 2022.02.23 @ 16:44:12 End 2022.02.24 @ 07:24:12 Sessions 4 Manual Loads 0 Difficulty Rogue Special Mode None Game No. 275 Rogue 258 Adventurer 4 Explorer 13 Win Type - Total 8 Types 6/0/0/2/0/0/0/0/0 Lore% 65 Gallery% 81 Achievement% 68 Wizard Run 0 Options --------- ASCII 0 Keyboard 1 Movement Numpad Keybinds 0 Fullscreen 1 Font 18/SmallcapsGlow Map View 76x50 Tactical HUD 1 Map Filters NONE Filters NONE Steam 1 RUN: fa42b084-d236-4da3-9cc5-3db2f3fe48a2